Workbook

Sheet Цены
A3: Расходный материал | B3: Категория | C3: Ед.изм. | D3: Цена | E3: Вес (ед.изм.) | F3: Объём | G3: Длина | H3: Ширина | I3: Статус | J3: Возможные поставщики
A4: Анкер болт М10х100мм | B4: в производстве | C4: шт. | D4: 16.9 | E4: 0.0525 | I4: Деталь
A5: Анкер болт М10х125мм | B5: в производстве | C5: шт. | D5: 20.87 | E5: 0.06 | I5: Деталь
A6: Анкер болт М12х100мм | B6: в производстве | C6: шт. | D6: 23.4 | E6: 0.044 | I6: Деталь
A7: Анкер болт М12х120мм | B7: в производстве | C7: шт. | D7: 26 | E7: 0.096 | I7: Деталь
A8: Анкер клиновой М12х120 мм | B8: перекупное | C8: шт. | D8: 31 | E8: 0.1078 | I8: Деталь
A9: Арматура 10 мм | B9: в производстве | C9: м.п. | D9: 22.8 | I9: Материал
A10: Арматура 14 мм | B10: в производстве | C10: м.п. | D10: 42 | I10: Материал
A11: Арматура 16 мм | B11: в производстве | C11: м.п. | D11: 53 | I11: Материал
A12: Баннер на пластике "Барсук" | B12: перекупное | C12: м2 | D12: 3500 | G12: 0.95 | H12: 1.2 | I12: Деталь
A13: Баннер на пластике "Белка" | B13: перекупное | C13: м2 | D13: 3500 | G13: 0.75 | H13: 0.9 | I13: Деталь
A14: Баннер на пластике "Белый медведь" | B14: перекупное | C14: м2 | D14: 3500 | G14: 1 | H14: 2 | I14: Деталь
A15: Баннер на пластике "Горы, ели" | B15: перекупное | C15: м2 | D15: 3500 | G15: 8.6 | H15: 1.2 | I15: Деталь
A16: Баннер на пластике "Дерево с кустарником" | B16: перекупное | C16: м2 | D16: 3500 | G16: 2.9 | H16: 2.6 | I16: Деталь
A17: Баннер на пластике "Дерево тонкий ствол" | B17: перекупное | C17: м2 | D17: 3500 | G17: 2.8 | H17: 2.8 | I17: Деталь
A18: Баннер на пластике "Дерево" | B18: перекупное | C18: м2 | D18: 3500 | G18: 1.8 | H18: 2.7 | I18: Деталь
A19: Баннер на пластике "Звездочка 1" | B19: перекупное | C19: м2 | D19: 3500 | G19: 0.35 | H19: 0.35 | I19: Деталь
A20: Баннер на пластике "Звездочка 2" | B20: перекупное | C20: м2 | D20: 3500 | G20: 0.45 | H20: 0.45 | I20: Деталь
A21: Баннер на пластике "Звездочка 3" | B21: перекупное | C21: м2 | D21: 3500 | G21: 0.55 | H21: 0.55 | I21: Деталь
A22: Баннер на пластике "Здание 1" | B22: перекупное | C22: м2 | D22: 4500 | G22: 3.9 | H22: 2.7 | I22: Деталь
A23: Баннер на пластике "Здание 2" | B23: перекупное | C23: м2 | D23: 4500 | G23: 2.7 | H23: 2 | I23: Деталь
A24: Баннер на пластике "Здание 3" | B24: перекупное | C24: м2 | D24: 4500 | G24: 2.7 | H24: 3 | I24: Деталь
A25: Баннер на пластике "Здание 4" | B25: перекупное | C25: м2 | D25: 4500 | G25: 3.9 | H25: 2.6 | I25: Деталь
A26: Баннер на пластике "Здание 5" | B26: перекупное | C26: м2 | D26: 4500 | G26: 3.9 | H26: 3 | I26: Деталь
A27: Баннер на пластике "Иллюминатор" | B27: перекупное | C27: м2 | D27: 3500 | G27: 0.4 | H27: 0.4 | I27: Деталь
A28: Баннер на пластике "Какаду" расправленные крылья | B28: перекупное | C28: м2 | D28: 3500 | G28: 0.7 | H28: 0.9 | I28: Деталь
A29: Баннер на пластике "Кенгуру" | B29: перекупное | C29: м2 | D29: 3500 | G29: 0.9 | H29: 0.52 | I29: Деталь
A30: Баннер на пластике "Кенгуру" с кенгуренком в сумке | B30: перекупное | C30: м2 | D30: 3500 | G30: 0.9 | H30: 0.9 | I30: Деталь
A31: Баннер на пластике "Кит" | B31: перекупное | C31: м2 | D31: 3500 | G31: 1 | H31: 2 | I31: Деталь
A32: Баннер на пластике "Лев с дрессировщиком" | B32: перекупное | C32: м2 | D32: 3500 | G32: 2 | H32: 1.8 | I32: Деталь
A33: Баннер на пластике "Листья" | B33: перекупное | C33: м2 | D33: 3500 | G33: 0.6 | H33: 0.8 | I33: Деталь
A34: Баннер на пластике "Листья" болшие (входная группа) | B34: перекупное | C34: м2 | D34: 3500 | G34: 2.7 | H34: 1 | I34: Деталь
A35: Баннер на пластике "Листья" малые (входная группа) | B35: перекупное | C35: м2 | D35: 3500 | G35: 0.47 | H35: 0.47 | I35: Деталь
A36: Баннер на пластике "Медведь на велосипеде" | B36: перекупное | C36: м2 | D36: 3500 | G36: 1.1 | H36: 1.55 | I36: Деталь
A37: Баннер на пластике "Пальма" + маленькая с раздвоенным стволом | B37: перекупное | C37: м2 | D37: 3500 | G37: 2.8 | H37: 1.4 | I37: Деталь
A38: Баннер на пластике "Пальма" + средняя | B38: перекупное | C38: м2 | D38: 3500 | G38: 2.8 | H38: 1.4 | I38: Деталь
A39: Баннер на пластике "Пальма" двойная большая | B39: перекупное | C39: м2 | D39: 3500 | G39: 2.95 | H39: 1.85 | I39: Деталь
A40: Баннер на пластике "Пальма" двойная средняя | B40: перекупное | C40: м3 | D40: 3500 | G40: 2.3 | H40: 1.45 | I40: Деталь
A41: Баннер на пластике "Пальма" толстое основание | B41: перекупное | C41: м2 | D41: 3500 | G41: 2.8 | H41: 1.3 | I41: Деталь
A42: Баннер на пластике "Пальма" толстый ствол | B42: перекупное | C42: м2 | D42: 3500 | G42: 3.2 | H42: 1.3 | I42: Деталь
A43: Баннер на пластике "Пингвин" | B43: перекупное | C43: м2 | D43: 3500 | G43: 2 | H43: 1 | I43: Деталь
A44: Баннер на пластике "Пират" | B44: перекупное | C44: м2 | D44: 3500 | G44: 1.15 | H44: 1.17 | I44: Деталь
A45: Баннер на пластике "Пиратский флаг" | B45: перекупное | C45: м2 | D45: 3500 | G45: 1.1 | H45: 0.725 | I45: Деталь
A46: Баннер на пластике "Птичка 1" | B46: перекупное | C46: м2 | D46: 3500 | G46: 0.35 | H46: 0.3 | I46: Деталь
A47: Баннер на пластике "Птичка 2" | B47: перекупное | C47: м2 | D47: 3500 | G47: 0.35 | H47: 0.35 | I47: Деталь
A48: Баннер на пластике "Птичка 3" | B48: перекупное | C48: м2 | D48: 3500 | G48: 0.35 | H48: 0.4 | I48: Деталь
A49: Баннер на пластике "Пушка с ядрами" | B49: перекупное | C49: м2 | D49: 3500 | G49: 0.83 | H49: 0.83 | I49: Деталь
A50: Баннер на пластике "Солнце улыбающееся" | B50: перекупное | C50: м2 | D50: 3500 | G50: 0.8 | H50: 0.8 | I50: Деталь
A51: Баннер на пластике "Стелла" | B51: перекупное | C51: м2 | D51: 4500 | G51: 3.9 | H51: 1.5 | I51: Деталь
A52: Баннер на пластике "Стрекоза" | B52: перекупное | C52: м2 | D52: 3500 | G52: 0.3 | H52: 0.3 | I52: Деталь
A53: Баннер на пластике "Тюлень" | B53: перекупное | C53: м2 | D53: 3500 | G53: 1 | H53: 2 | I53: Деталь
A54: Баннер на пластике "Факир" | B54: перекупное | C54: м2 | D54: 3500 | G54: 0.99 | H54: 2 | I54: Деталь
A55: Баннер на пластике "Юнга пират" | B55: перекупное | C55: м2 | D55: 3500 | G55: 1.02 | H55: 0.67 | I55: Деталь
A56: Баннер на пластике "Юнга пират2" | B56: перекупное | C56: м2 | D56: 3500 | G56: 1.09 | H56: 0.71 | I56: Деталь
A57: Баннер на пластике волна | B57: перекупное | C57: м2 | D57: 3500 | G57: 12.5 | H57: 0.7 | I57: Деталь
A58: Баннер на пластике дельфин 1 | B58: перекупное | C58: м2 | D58: 3500 | G58: 1.5 | H58: 1.3 | I58: Деталь
A59: Баннер на пластике дельфин 2 | B59: перекупное | C59: м2 | D59: 3500 | G59: 1.135 | H59: 1.3 | I59: Деталь
A60: Баннер на пластике оборка | B60: перекупное | C60: м2 | D60: 3500 | G60: 1 | H60: 0.5 | I60: Деталь
A61: Баннер на пластике Эйфелева башня" | B61: перекупное | C61: м2 | D61: 4500 | G61: 3.9 | H61: 1.7 | I61: Деталь
A62: Баскетбольный щит с кольцом | B62: в производстве | C62: шт. | D62: 3500 | I62: Деталь
A63: Батутное полотнно (ПВХ) 2,3*2,7 м | B63: перекупное | C63: шт. | D63: 15900 | I63: Деталь
A64: Батутное полотнно (ПВХ) 3*2,5 м | B64: перекупное | C64: шт. | D64: 15900 | I64: Деталь
A65: Батутное полотнно (ПВХ) 3*2,7 м | B65: перекупное | C65: шт. | D65: 16400 | I65: Деталь
A66: Батутное полотнно (ПВХ) 3*3 м | B66: перекупное | C66: шт. | D66: 15970 | I66: Деталь
A67: Батутное полотнно (ПВХ) 3*3,8 м | B67: перекупное | C67: шт. | D67: 22900 | I67: Деталь
A68: Батутное полотнно (ПВХ) 4,3*2,3 м | B68: перекупное | C68: шт. | D68: 18700 | I68: Деталь
A69: Батутное полотнно (ПВХ) 4,5*3 м | B69: перекупное | C69: шт. | D69: 19000 | I69: Деталь
A70: Батутное полотнно (ПВХ) 5*3 м | B70: перекупное | C70: шт. | D70: 25600 | I70: Деталь
A71: Батутное полотнно (ПВХ) 5,0*2 м | B71: перекупное | C71: шт. | D71: 21100 | I71: Деталь
A72: Батутное полотнно (ПВХ) 5,5*2 м | B72: перекупное | C72: шт. | D72: 21900 | I72: Деталь
A73: Батутное полотнно (ПВХ) 5,5*3 м | B73: перекупное | C73: шт. | D73: 22000 | I73: Деталь
A74: Батутное полотнно (ПВХ) 5,7*3 м | B74: перекупное | C74: шт. | D74: 27400 | I74: Деталь
A75: Батутное полотнно (ПВХ) 6*3 м | B75: перекупное | C75: шт. | D75: 30800 | I75: Деталь
A76: Батутное полотнно (ПВХ) 6,5*2 м | B76: перекупное | C76: шт. | D76: 22900 | I76: Деталь
A77: Батутное полотнно (ПВХ) 6,7*3 м | B77: перекупное | C77: шт. | D77: 23800 | I77: Деталь
A78: Батутное полотнно (ПВХ) 8,5*3 м | B78: перекупное | C78: шт. | D78: 29800 | I78: Деталь
A79: Батутное полотнно (полуспорт) 2,3*2,7 м | B79: перекупное | C79: шт. | D79: 18900 | I79: Деталь
A80: Батутное полотнно (полуспорт) 3*2,5 м | B80: перекупное | C80: шт. | D80: 20800 | I80: Деталь
A81: Батутное полотнно (полуспорт) 3*2,7 м | B81: перекупное | C81: шт. | D81: 21700 | I81: Деталь
A82: Батутное полотнно (полуспорт) 4,3*2,3 м | B82: перекупное | C82: шт. | D82: 36000 | I82: Деталь
A83: Батутное полотнно (полуспорт) 5*2 м | B83: перекупное | C83: шт. | D83: 30250 | I83: Деталь
A84: Батутное полотнно (полуспорт) 5*2,5 м | B84: перекупное | C84: шт. | D84: 31000 | I84: Деталь
A85: Батутное полотнно (полуспорт) 6*2 м | B85: перекупное | C85: шт. | D85: 36300 | I85: Деталь
A86: Батутное полотнно (спорт) 5*3 м | B86: перекупное | C86: шт. | D86: 76900 | I86: Деталь
A87: Батутное полотно (ПВХ) 10*3 м | B87: перекупное | C87: шт. | D87: 35400 | I87: Деталь
A88: Батутное полотно (ПВХ) 2,2*2,2 м | B88: перекупное | C88: шт. | D88: 14800 | I88: Деталь
A89: Батутное полотно (ПВХ) 2,25*2,1 м | B89: перекупное | C89: шт. | D89: 10100 | I89: Деталь
A90: Батутное полотно (ПВХ) 2,3*2,7 м | B90: перекупное | C90: шт. | D90: 15900 | I90: Деталь
A91: Батутное полотно (ПВХ) 2,5*2,5 м | B91: перекупное | C91: шт. | D91: 14700 | I91: Деталь
A92: Батутное полотно (ПВХ) 2,6*1,9 м | B92: перекупное | C92: шт. | D92: 11100 | I92: Деталь
A93: Батутное полотно (ПВХ) 2,6*2,6 м | B93: перекупное | C93: шт. | D93: 15300 | I93: Деталь
A94: Батутное полотно (ПВХ) 3*2,1 м | B94: перекупное | C94: шт. | D94: 14800 | I94: Деталь
A95: Батутное полотно (ПВХ) 3*2,5 м | B95: перекупное | C95: шт. | D95: 15900 | I95: Деталь
A96: Батутное полотно (ПВХ) 3*2,7 м | B96: перекупное | C96: шт. | D96: 16400 | I96: Деталь
A97: Батутное полотно (ПВХ) 3*2,8 м | B97: перекупное | C97: шт. | D97: 15800 | I97: Деталь
A98: Батутное полотно (ПВХ) 3*3 м | B98: перекупное | C98: шт. | D98: 15970 | I98: Деталь
A99: Батутное полотно (ПВХ) 3*3,8 м | B99: перекупное | C99: шт. | D99: 22900 | I99: Деталь
A100: Батутное полотно (ПВХ) 4,3*2,3 м | B100: перекупное | C100: шт. | D100: 18700 | I100: Деталь
A101: Батутное полотно (ПВХ) 4,5*3 м | B101: перекупное | C101: шт. | D101: 19000 | I101: Деталь
A102: Батутное полотно (ПВХ) 5*3 м | B102: перекупное | C102: шт. | D102: 25600 | I102: Деталь
A103: Батутное полотно (ПВХ) 5,2*3 м | B103: перекупное | C103: шт. | D103: 25900 | I103: Деталь
A104: Батутное полотно (ПВХ) 5,5*2 м | B104: перекупное | C104: шт. | D104: 25600 | I104: Деталь
A105: Батутное полотно (ПВХ) 5,5*3 м | B105: перекупное | C105: шт. | D105: 26100 | I105: Деталь
A106: Батутное полотно (ПВХ) 5,7*3 м | B106: перекупное | C106: шт. | D106: 27400 | I106: Деталь
A107: Батутное полотно (ПВХ) 6*3 м | B107: перекупное | C107: шт. | D107: 26900 | I107: Деталь
A108: Батутное полотно (ПВХ) 6,5*2 м | B108: перекупное | C108: шт. | D108: 22900 | I108: Деталь
A109: Батутное полотно (ПВХ) 6,7*3 м | B109: перекупное | C109: шт. | D109: 23800 | I109: Деталь
A110: Батутное полотно (ПВХ) 8,5*3 м | B110: перекупное | C110: шт. | D110: 29800 | I110: Деталь
A111: Батутное полотно (ПВХ)4*3 м | B111: перекупное | C111: шт. | D111: 17850 | I111: Деталь
A112: Батутное полотно (полуспорт) 2*2 м | B112: перекупное | C112: шт. | D112: 14700 | I112: Деталь
A113: Батутное полотно (полуспорт) 2,13*2,4 м | B113: перекупное | C113: шт. | D113: 17200 | I113: Деталь
A114: Батутное полотно (полуспорт) 2,25*2,1 м | B114: перекупное | C114: шт. | D114: 16400 | I114: Деталь
A115: Батутное полотно (полуспорт) 2,3*2,7 м | B115: перекупное | C115: шт. | D115: 18900 | I115: Деталь
A116: Батутное полотно (полуспорт) 2,4*2,8 м | B116: перекупное | C116: шт. | D116: 19780 | I116: Деталь
A117: Батутное полотно (полуспорт) 2,5*2,5 м | B117: перекупное | C117: шт. | D117: 18300 | I117: Деталь
A118: Батутное полотно (полуспорт) 2,6*2,6 м | B118: перекупное | C118: шт. | D118: 19100 | I118: Деталь
A119: Батутное полотно (полуспорт) 3*2,5 м | B119: перекупное | C119: шт. | D119: 20800 | I119: Деталь
A120: Батутное полотно (полуспорт) 3*2,7 м | B120: перекупное | C120: шт. | D120: 21700 | I120: Деталь
A121: Батутное полотно (полуспорт) 3*3 м | B121: перекупное | C121: шт. | D121: 10480 | I121: Деталь
A122: Батутное полотно (полуспорт) 3,8*3 м | B122: перекупное | C122: шт. | D122: 14030 | I122: Деталь
A123: Батутное полотно (полуспорт) 3,8*3,4 м | B123: перекупное | C123: шт. | D123: 16600 | I123: Деталь
A124: Батутное полотно (полуспорт) 4*2 м | B124: перекупное | C124: шт. | D124: 29700 | I124: Деталь
A125: Батутное полотно (полуспорт) 4*3 м | B125: перекупное | C125: шт. | D125: 14940 | I125: Деталь
A126: Батутное полотно (полуспорт) 4,3*2,3 м | B126: перекупное | C126: шт. | D126: 36000 | I126: Деталь
A127: Батутное полотно (полуспорт) 4,5*3 м | B127: перекупное | C127: шт. | D127: 32450 | I127: Деталь
A128: Батутное полотно (полуспорт) 4,5*3,35 м | B128: перекупное | C128: шт. | D128: 18630 | I128: Деталь
A129: Батутное полотно (полуспорт) 4,5*3,5 м | B129: перекупное | C129: шт. | D129: 19710 | I129: Деталь
A130: Батутное полотно (полуспорт) 5*3 м | B130: перекупное | C130: шт. | D130: 19360 | I130: Деталь
A131: Батутное полотно (полуспорт) 5*3,5 м | B131: перекупное | C131: шт. | D131: 22330 | I131: Деталь
A132: Батутное полотно (полуспорт) 5,5*3 м | B132: перекупное | C132: шт. | D132: 21620 | I132: Деталь
A133: Батутное полотно (полуспорт) 5,5*3,5 м | B133: перекупное | C133: шт. | D133: 24950 | I133: Деталь
A134: Батутное полотно (полуспорт) 6*2 м | B134: перекупное | C134: шт. | D134: 36300 | I134: Деталь
A135: Батутное полотно (полуспорт) 6*3 м | B135: перекупное | C135: шт. | D135: 25550 | I135: Деталь
A136: Батутное полотно (полуспорт) 7*2 м | B136: перекупное | C136: шт. | D136: 40200 | I136: Деталь
A137: Батутное полотно (полуспорт) 9*2,5 м | B137: перекупное | C137: шт. | D137: 62400 | I137: Деталь
A138: Батутное полотно (спорт) 5*3 м | B138: перекупное | C138: шт. | D138: 76900 | I138: Деталь
A139: Батутное полотно (спорт) 5*5 м | B139: перекупное | C139: шт. | D139: 109000 | I139: Деталь
A140: Батутное полотно 174 (ПВХ) 2*2 м | B140: перекупное | C140: шт. | D140: 12100 | I140: Деталь
A141: Батутное полотно 174 (полуспорт) 2*2 м | B141: перекупное | C141: шт. | D141: 6640 | I141: Деталь
A142: Батутное полотно 174 (полуспорт) 2,5*2 м | B142: перекупное | C142: шт. | D142: 7020 | I142: Деталь
A143: Батутное полотно 174 (полуспорт) 2,5*2,5 м | B143: перекупное | C143: шт. | D143: 8920 | I143: Деталь
A144: Батутное полотно 174 (полуспорт) 2,6*2 м | B144: перекупное | C144: шт. | D144: 7620 | I144: Деталь
A145: Батутное полотно 174 (полуспорт) 2,6*2,5 м | B145: перекупное | C145: шт. | D145: 12380 | I145: Деталь
A146: Батутное полотно 174 (полуспорт) 2,6*2,6 м | B146: перекупное | C146: шт. | D146: 9670 | I146: Деталь
A147: Батутное полотно 174 (полуспорт) 2,7*2,7 м | B147: перекупное | C147: шт. | D147: 10700 | I147: Деталь
A148: Батутное полотно 174 (полуспорт) 3*1,5 м | B148: перекупное | C148: шт. | D148: 4470 | I148: Деталь
A149: Батутное полотно 174 (полуспорт) 3*2,5 м | B149: перекупное | C149: шт. | D149: 9640 | I149: Деталь
A150: Батутное полотно 174 (полуспорт) 3*2,6 м | B150: перекупное | C150: шт. | D150: 9700 | I150: Деталь
A151: Батутное полотно 174 (полуспорт) 3,4*2,8 м | B151: перекупное | C151: шт. | D151: 13480 | I151: Деталь
A152: Батутное полотно 174 (полуспорт) 3,5*2 м | B152: перекупное | C152: шт. | D152: 8540 | I152: Деталь
A153: Батутное полотно 174 (полуспорт) 4*2 м | B153: перекупное | C153: шт. | D153: 9500 | I153: Деталь
A154: Батутное полотно 174 (полуспорт) 4*2,1 м | B154: перекупное | C154: шт. | D154: 12300 | I154: Деталь
A155: Батутное полотно 174 (полуспорт) 4*2,4 м | B155: перекупное | C155: шт. | D155: 12295 | I155: Деталь
A156: Батутное полотно 174 (полуспорт) 4*2,8 м | B156: перекупное | C156: шт. | D156: 22670 | I156: Деталь
A157: Батутное полотно 174 (полуспорт) 4,5*2,6 м | B157: перекупное | C157: шт. | D157: 15500 | I157: Деталь
A158: Батутное полотно 174 (полуспорт) 4,5*2,8 м | B158: перекупное | C158: шт. | D158: 22870 | I158: Деталь
A159: Батутное полотно 174 (полуспорт) 5*2 м | B159: перекупное | C159: шт. | D159: 12960 | I159: Деталь
A160: Батутное полотно 174 горизонтально-наклонное (полуспорт) 4,5*2,5 м | B160: перекупное | C160: шт. | D160: 38170 | I160: Деталь
A161: Батутное полотно 174 горизонтально-наклонное (полуспорт) 4,5*2,6 м | B161: перекупное | C161: шт. | D161: 26990 | I161: Деталь
A162: Батутное полотно 174 горизонтально-наклонное (полуспорт) 5*2,7 м | B162: перекупное | C162: шт. | D162: 21350 | I162: Деталь
A163: Батутное полотно 174 горизонтально-наклонное СП (ПВХ) 2*2,1 м | B163: в производстве | C163: шт. | D163: 2610 | I163: Деталь
A164: Батутное полотно 174 горизонтально-наклонное СП (ПВХ) 2*2,5 м | B164: в производстве | C164: шт. | I164: Деталь
A165: Батутное полотно 174 горизонтально-наклонное СП (ПВХ) 3*2,1 м | B165: в производстве | C165: шт. | D165: 3030 | I165: Деталь
A166: Батутное полотно 174 горизонтально-наклонное СП (ПВХ) 3*2,3 м | B166: в производстве | C166: шт. | I166: Деталь
A167: Батутное полотно 174 горизонтально-наклонное СП (ПВХ) 5*2,7 м | B167: в производстве | C167: шт. | D167: 5100 | I167: Деталь
A168: Батутное полотно 174 СП (ПВХ) 2*2 м | B168: в производстве | C168: шт. | D168: 2610 | I168: Деталь
A169: Батутное полотно 174 СП (ПВХ) 2,4*2,1 м | B169: в производстве | C169: шт. | I169: Деталь
A170: Батутное полотно 174 СП (ПВХ) 2,4*2,4 м | B170: в производстве | C170: шт. | D170: 2720 | I170: Деталь
A171: Батутное полотно 174 СП (ПВХ) 2,5*2,3 м | B171: в производстве | C171: шт. | I171: Деталь
A172: Батутное полотно 174 СП (ПВХ) 2,5*2,5 м | B172: в производстве | C172: шт. | D172: 3010 | I172: Деталь
A173: Батутное полотно 174 СП (ПВХ) 2,6*2,6 м | B173: в производстве | C173: шт. | D173: 2860 | I173: Деталь
A174: Батутное полотно 174 СП (ПВХ) 2,7*2,7 м | B174: в производстве | C174: шт. | D174: 3050 | I174: Деталь
A175: Батутное полотно 174 СП (ПВХ) 2,8*2,65 м | B175: в производстве | C175: шт. | D175: 3180 | I175: Деталь
A176: Батутное полотно 174 СП (ПВХ) 2,9*2 м | B176: в производстве | C176: шт. | I176: Деталь
A177: Батутное полотно 174 СП (ПВХ) 3*2,1 м | B177: в производстве | C177: шт. | I177: Деталь
A178: Батутное полотно 174 СП (ПВХ) 3*2,3 м | B178: в производстве | C178: шт. | D178: 3160 | I178: Деталь
A179: Батутное полотно 174 СП (ПВХ) 3*2,5 м | B179: в производстве | C179: шт. | D179: 3270 | I179: Деталь
A180: Батутное полотно 174 СП (ПВХ) 3*2,85 м | B180: в производстве | C180: шт. | D180: 3440 | I180: Деталь
A181: Батутное полотно 174 СП (ПВХ) 3,2*2,7 м | B181: в производстве | C181: шт. | I181: Деталь
A182: Батутное полотно 174 СП (ПВХ) 3,3*2 м | B182: в производстве | C182: шт. | D182: 3170 | I182: Деталь
A183: Батутное полотно 174 СП (ПВХ) 3,65*2,6 м | B183: в производстве | C183: шт. | I183: Деталь
A184: Батутное полотно 174 СП (ПВХ) 5*2,6 м | B184: в производстве | C184: шт. | D184: 5020 | I184: Деталь
A185: Батутное полотно 174 СП (ПВХ) 7*2,5 м | B185: в производстве | C185: шт. | D185: 6540 | I185: Деталь
A186: Батутное полотно 174 СП (ПВХ) 9*2 м | B186: в производстве | C186: шт. | D186: 7470
A187: Батутное полотно 174 СП (ПВХ) 9*2,4 м | B187: в производстве | C187: шт. | I187: Деталь
A188: Батутное полотно 174 СП (полуспорт) 2*2 м | B188: в производстве | C188: шт.
A189: Батутное полотно 174 СП (полуспорт) 2,83*2,83 м | B189: в производстве | C189: шт. | I189: Деталь
A190: Батутное полотно горизонтально-наклонное (полуспорт) 4,5*3 м | B190: перекупное | C190: шт. | D190: 21620 | I190: Деталь
A191: Батутное полотно горизонтально-наклонное (полуспорт) 5,3*3 м | B191: перекупное | C191: шт. | D191: 20730 | I191: Деталь
A192: Батутное полотно горизонтально-наклонное 174 СП (ПВХ) 4,5*2 м | B192: в производстве | C192: шт. | D192: 4690 | I192: Деталь
A193: Батутное полотно горизонтально-наклонное 174 СП (ПВХ) 4,5*2,6 м | B193: в производстве | C193: шт. | D193: 5310 | I193: Деталь
A194: Батутное полотно горизонтально-наклонное СП (ПВХ) 3,8*3 м | B194: в производстве | C194: шт. | I194: Деталь
A195: Батутное полотно горизонтально-наклонное СП (ПВХ) 4,5*3 м | B195: в производстве | C195: шт. | D195: 5750 | I195: Деталь
A196: Батутное полотно горизонтально-наклонное СП (ПВХ) 5*1,8м | B196: в производстве | C196: шт. | D196: 4910 | I196: Деталь
A197: Батутное полотно горизонтально-наклонное СП (ПВХ) 5*3 м | B197: в производстве | C197: шт. | D197: 6290 | I197: Деталь
A198: Батутное полотно горизонтально-наклонное СП (ПВХ) 7,5*3 м | B198: в производстве | C198: шт. | D198: 8470 | I198: Деталь
A199: Батутное полотно полуспорт 4,5*3 м | B199: перекупное | C199: шт. | D199: 27100 | I199: Деталь
A200: Батутное полотно СП (ПВХ) 2*2 м | B200: в производстве | C200: шт. | D200: 2220 | I200: Деталь
A201: Батутное полотно СП (ПВХ) 2,5*2,2 м | B201: в производстве | C201: шт. | D201: 2470 | I201: Деталь
A202: Батутное полотно СП (ПВХ) 2,6*2,6 м | B202: в производстве | C202: шт. | D202: 2910 | I202: Деталь
... 584 more rows

Sheet Лист1
